[Event "Late-Titled-Tuesday-Blitz-May-07-2024"]
[Site "Chess.com"]
[Date "2024.05.07"]
[Round "10"]
[White "Zhigalko_Sergei"]
[Black "sofaceindisguise"]
[Result "0-1"]
[WhiteElo "2866"]
[BlackElo "2743"]
[TimeControl "180+1"]
[EndTime "15:57:37 PDT"]
[Termination "sofaceindisguise won on time"]

1. e4 {[%clk 0:03:00.9]} 1... e5 {[%clk 0:02:57.3]} 2. Nf3 {[%clk 0:03:00.7]}
2... Nc6 {[%clk 0:02:57.4]} 3. Bc4 {[%clk 0:03:01]} 3... Bc5 {[%clk 0:02:56.3]}
4. b4 {[%clk 0:03:01.2]} 4... Bxb4 {[%clk 0:02:51.1]} 5. c3 {[%clk 0:03:01.5]}
5... Be7 {[%clk 0:02:49.2]} 6. d4 {[%clk 0:03:01.7]} 6... exd4 {[%clk
0:02:28.2]} 7. Qb3 {[%clk 0:02:21.5]} 7... d5 {[%clk 0:02:26.6]} 8. Bxd5 {[%clk
0:02:19.4]} 8... Na5 {[%clk 0:02:21.2]} 9. Bxf7+ {[%clk 0:02:11.9]} 9... Kf8
{[%clk 0:02:19.7]} 10. Qa4 {[%clk 0:02:12.1]} 10... c6 {[%clk 0:02:08.2]} 11.
Bxg8 {[%clk 0:01:58.5]} 11... b5 {[%clk 0:02:03.5]} 12. Qd1 {[%clk 0:01:49.1]}
12... Kxg8 {[%clk 0:01:52.3]} 13. cxd4 {[%clk 0:01:49.4]} 13... h6 {[%clk
0:01:47.9]} 14. O-O {[%clk 0:01:26.4]} 14... Bg4 {[%clk 0:01:43.7]} 15. Nbd2
{[%clk 0:01:22.3]} 15... Bg5 {[%clk 0:01:21.6]} 16. h3 {[%clk 0:01:15]} 16...
Bxd2 {[%clk 0:01:16]} 17. hxg4 {[%clk 0:01:12.9]} 17... Bxc1 {[%clk 0:01:09.3]}
18. Rxc1 {[%clk 0:01:13.8]} 18... Nc4 {[%clk 0:01:08.3]} 19. Ne5 {[%clk
0:00:58.1]} 19... Nxe5 {[%clk 0:01:04.9]} 20. dxe5 {[%clk 0:00:59]} 20... Qe8
{[%clk 0:00:58.4]} 21. f4 {[%clk 0:00:45.2]} 21... Kh7 {[%clk 0:00:55.6]} 22.
Qd6 {[%clk 0:00:36.5]} 22... Rc8 {[%clk 0:00:50]} 23. e6 {[%clk 0:00:31.8]}
23... Qg6 {[%clk 0:00:48.3]} 24. f5 {[%clk 0:00:17.1]} 24... Qxg4 {[%clk
0:00:45.4]} 25. Qe5 {[%clk 0:00:09.6]} 25... Rhd8 {[%clk 0:00:38.5]} 26. Rf3
{[%clk 0:00:07.2]} 26... Qg5 {[%clk 0:00:32.5]} 27. Rcf1 {[%clk 0:00:05.6]}
27... c5 {[%clk 0:00:18.5]} 28. Rg3 {[%clk 0:00:05.7]} 28... Qf6 {[%clk
0:00:19.1]} 29. Qxf6 {[%clk 0:00:05.1]} 29... gxf6 {[%clk 0:00:20]} 30. Rg6
{[%clk 0:00:05.8]} 30... c4 {[%clk 0:00:18.8]} 31. Rxf6 {[%clk 0:00:04.8]} 31...
c3 {[%clk 0:00:19.3]} 32. e7 {[%clk 0:00:05.4]} 32... Re8 {[%clk 0:00:18.5]} 33.
Re6 {[%clk 0:00:05.7]} 33... c2 {[%clk 0:00:18.9]} 34. Rc1 {[%clk 0:00:05.5]}
34... Kg7 {[%clk 0:00:18.4]} 35. Kf2 {[%clk 0:00:04.1]} 35... Kf7 {[%clk
0:00:18.9]} 36. Rxh6 {[%clk 0:00:04.4]} 36... Rxe7 {[%clk 0:00:19.2]} 37. Rh7+
{[%clk 0:00:04.6]} 37... Kf6 {[%clk 0:00:18.6]} 38. Rxe7 {[%clk 0:00:05.2]}
38... Kxe7 {[%clk 0:00:19.1]} 39. Ke3 {[%clk 0:00:05.8]} 39... a5 {[%clk
0:00:19.5]} 40. Kd3 {[%clk 0:00:05.7]} 40... Rd8+ {[%clk 0:00:17.2]} 41. Ke3
{[%clk 0:00:06.1]} 41... Rc8 {[%clk 0:00:16.2]} 42. e5 {[%clk 0:00:05.6]} 42...
Rc5 {[%clk 0:00:15.9]} 43. Kd4 {[%clk 0:00:05.6]} 43... Rc4+ {[%clk 0:00:16.2]}
44. Kd3 {[%clk 0:00:05.7]} 44... Rc5 {[%clk 0:00:16.7]} 45. Kd4 {[%clk 0:00:03]}
45... Rc4+ {[%clk 0:00:16.8]} 46. Kd5 {[%clk 0:00:03.2]} 46... Rc3 {[%clk
0:00:15]} 47. g4 {[%clk 0:00:01.7]} 47... b4 {[%clk 0:00:14.8]} 48. g5 {[%clk
0:00:01.6]} 48... a4 {[%clk 0:00:15.2]} 49. Kd4 {[%clk 0:00:01.9]} 49... Rc8
{[%clk 0:00:14]} 50. f6+ {[%clk 0:00:01.5]} 50... Ke6 {[%clk 0:00:14.4]} 51. g6
{[%clk 0:00:01.8]} 51... b3 {[%clk 0:00:14.7]} 52. axb3 {[%clk 0:00:02.7]} 52...
axb3 {[%clk 0:00:15.6]} 53. g7 {[%clk 0:00:03.5]} 53... Kf7 {[%clk 0:00:15.9]}
54. Kd5 {[%clk 0:00:01.4]} 54... Rd8+ {[%clk 0:00:15.6]} 55. Ke4 {[%clk
0:00:01.2]} 55... b2 {[%clk 0:00:16.1]} 56. Rg1 {[%clk 0:00:00.7]} 56... b1=Q
{[%clk 0:00:15.2]} 57. g8=Q+ {[%clk 0:00:01.4]} 57... Rxg8 {[%clk 0:00:14.9]}
58. Rxb1 {[%clk 0:00:02.3]} 58... cxb1=Q+ {[%clk 0:00:15.1]} 0-1

[Event "Late-Titled-Tuesday-Blitz-May-07-2024"]
[Site "Chess.com"]
[Date "2024.05.07"]
[Round "10"]
[White "Hasangatin_Ramil"]
[Black "XDPS"]
[Result "1-0"]
[WhiteElo "2696"]
[BlackElo "2823"]
[TimeControl "180+1"]
[EndTime "15:57:38 PDT"]
[Termination "Hasangatin_Ramil won on time"]

1. e4 {[%clk 0:03:00.9]} 1... c5 {[%clk 0:02:58.6]} 2. Nf3 {[%clk 0:03:01]} 2...
e6 {[%clk 0:02:58.8]} 3. g3 {[%clk 0:03:00.5]} 3... Nc6 {[%clk 0:02:58.4]} 4.
Bg2 {[%clk 0:03:00.8]} 4... Nf6 {[%clk 0:02:59.1]} 5. d3 {[%clk 0:03:00.7]} 5...
d5 {[%clk 0:02:59.1]} 6. Qe2 {[%clk 0:03:00.5]} 6... Be7 {[%clk 0:02:59.5]} 7.
e5 {[%clk 0:03:01]} 7... Nd7 {[%clk 0:02:59.5]} 8. c4 {[%clk 0:03:01.7]} 8... d4
{[%clk 0:02:54]} 9. h4 {[%clk 0:02:57.8]} 9... h6 {[%clk 0:02:53.4]} 10. h5
{[%clk 0:02:56.2]} 10... Qc7 {[%clk 0:02:53]} 11. Bf4 {[%clk 0:02:55.4]} 11...
b6 {[%clk 0:02:53.1]} 12. Na3 {[%clk 0:02:52.4]} 12... a6 {[%clk 0:02:52.5]} 13.
Nc2 {[%clk 0:02:51.9]} 13... Bb7 {[%clk 0:02:52.8]} 14. a3 {[%clk 0:02:46.8]}
14... b5 {[%clk 0:02:38.6]} 15. b3 {[%clk 0:02:42.9]} 15... Rb8 {[%clk
0:02:02.2]} 16. O-O {[%clk 0:02:41.7]} 16... Ba8 {[%clk 0:01:53.8]} 17. cxb5
{[%clk 0:02:34.7]} 17... axb5 {[%clk 0:01:53.8]} 18. a4 {[%clk 0:02:35.1]} 18...
bxa4 {[%clk 0:01:53.8]} 19. bxa4 {[%clk 0:02:34.7]} 19... Na5 {[%clk 0:01:46]}
20. Na3 {[%clk 0:02:33.2]} 20... Bc6 {[%clk 0:01:32.9]} 21. Qc2 {[%clk
0:02:18.5]} 21... O-O {[%clk 0:01:22.2]} 22. Rfb1 {[%clk 0:02:08.4]} 22... Rxb1+
{[%clk 0:00:51.1]} 23. Rxb1 {[%clk 0:02:07.8]} 23... Rb8 {[%clk 0:00:51.6]} 24.
Nb5 {[%clk 0:02:04.2]} 24... Qd8 {[%clk 0:00:51.6]} 25. Nd2 {[%clk 0:01:54.3]}
25... Bxg2 {[%clk 0:00:49.7]} 26. Kxg2 {[%clk 0:01:55.2]} 26... Nb6 {[%clk
0:00:50]} 27. Ne4 {[%clk 0:01:44.4]} 27... Nd5 {[%clk 0:00:46.9]} 28. Bd2 {[%clk
0:01:44.2]} 28... Nc6 {[%clk 0:00:43.6]} 29. Nxc5 {[%clk 0:01:33.1]} 29... Nxe5
{[%clk 0:00:41.7]} 30. Nb3 {[%clk 0:00:47.7]} 30... Rc8 {[%clk 0:00:38.2]} 31.
Qb2 {[%clk 0:00:47.3]} 31... Nc3 {[%clk 0:00:28.4]} 32. Nxc3 {[%clk 0:00:37]}
32... dxc3 {[%clk 0:00:28]} 33. Bxc3 {[%clk 0:00:36.6]} 33... Qd5+ {[%clk
0:00:28.7]} 34. Kh3 {[%clk 0:00:31.8]} 34... Nxd3 {[%clk 0:00:25.6]} 35. Qd2
{[%clk 0:00:25.5]} 35... Qxh5+ {[%clk 0:00:23.6]} 36. Kg2 {[%clk 0:00:25.1]}
36... Qd5+ {[%clk 0:00:23.5]} 37. Kg1 {[%clk 0:00:24.8]} 37... Bg5 {[%clk
0:00:22.8]} 38. f4 {[%clk 0:00:18.2]} 38... Be7 {[%clk 0:00:22.7]} 39. Bd4
{[%clk 0:00:15.6]} 39... Nb4 {[%clk 0:00:17.3]} 40. Bf2 {[%clk 0:00:15.6]} 40...
Qf5 {[%clk 0:00:15.3]} 41. Rf1 {[%clk 0:00:12.2]} 41... Nd5 {[%clk 0:00:15]} 42.
Nd4 {[%clk 0:00:12.1]} 42... Qh3 {[%clk 0:00:13.6]} 43. Nf3 {[%clk 0:00:10.6]}
43... Bb4 {[%clk 0:00:13.4]} 44. Qd3 {[%clk 0:00:08.7]} 44... Ra8 {[%clk
0:00:12.2]} 45. Qb5 {[%clk 0:00:07.8]} 45... Qh5 {[%clk 0:00:11.1]} 46. Kg2
{[%clk 0:00:07.2]} 46... Ra5 {[%clk 0:00:10.6]} 47. Qe8+ {[%clk 0:00:05.4]}
47... Kh7 {[%clk 0:00:11.2]} 48. Ne5 {[%clk 0:00:05.2]} 48... Rxa4 {[%clk
0:00:04.7]} 49. Qxa4 {[%clk 0:00:04.2]} 49... Bd2 {[%clk 0:00:03.9]} 50. Qc2+
{[%clk 0:00:04.5]} 50... f5 {[%clk 0:00:03.3]} 51. Qxd2 {[%clk 0:00:04.8]} 51...
Qe8 {[%clk 0:00:03.7]} 52. Qd1 {[%clk 0:00:04.9]} 52... Qa8 {[%clk 0:00:04.3]}
53. Qf3 {[%clk 0:00:05.3]} 53... Qa2 {[%clk 0:00:04.9]} 54. Re1 {[%clk
0:00:05.5]} 54... Qb3 {[%clk 0:00:05.4]} 55. Qxb3 {[%clk 0:00:04.8]} 1-0

[Event "Late-Titled-Tuesday-Blitz-May-07-2024"]
[Site "Chess.com"]
[Date "2024.05.07"]
[Round "10"]
[White "howitzer14"]
[Black "GWR2024"]
[Result "1-0"]
[WhiteElo "3015"]
[BlackElo "2185"]
[TimeControl "180+1"]
[EndTime "15:57:47 PDT"]
[Termination "howitzer14 won by resignation"]

1. a3 {[%clk 0:02:38.5]} 1... e5 {[%clk 0:02:57.8]} 2. h3 {[%clk 0:02:33.1]}
2... d5 {[%clk 0:02:56.7]} 3. e3 {[%clk 0:02:33.4]} 3... Nf6 {[%clk 0:02:55.8]}
4. d3 {[%clk 0:02:30.5]} 4... Bd6 {[%clk 0:02:55]} 5. Nd2 {[%clk 0:02:30.7]}
5... Qe7 {[%clk 0:02:54.5]} 6. Ne2 {[%clk 0:02:31.1]} 6... c5 {[%clk 0:02:52.6]}
7. b3 {[%clk 0:02:30.9]} 7... Nc6 {[%clk 0:02:51.5]} 8. Bb2 {[%clk 0:02:31.6]}
8... O-O {[%clk 0:02:50.3]} 9. g4 {[%clk 0:02:31.8]} 9... Be6 {[%clk 0:02:42.2]}
10. Bg2 {[%clk 0:02:24.7]} 10... h6 {[%clk 0:02:39.6]} 11. Ng3 {[%clk
0:02:12.4]} 11... Rfe8 {[%clk 0:02:19.3]} 12. Qe2 {[%clk 0:02:10.7]} 12... b5
{[%clk 0:02:16.5]} 13. Rg1 {[%clk 0:02:01.8]} 13... Rac8 {[%clk 0:02:09.4]} 14.
Nf5 {[%clk 0:01:58]} 14... Bxf5 {[%clk 0:02:07.5]} 15. gxf5 {[%clk 0:01:58.9]}
15... Kh8 {[%clk 0:02:03.3]} 16. Qf3 {[%clk 0:01:55]} 16... e4 {[%clk
0:01:55.9]} 17. dxe4 {[%clk 0:01:51.6]} 17... dxe4 {[%clk 0:01:52.6]} 18. Qe2
{[%clk 0:01:04.4]} 18... Be5 {[%clk 0:01:43.9]} 19. Bxe5 {[%clk 0:01:00.3]}
19... Qxe5 {[%clk 0:01:44.8]} 20. Rd1 {[%clk 0:00:59.5]} 20... a6 {[%clk
0:01:41]} 21. h4 {[%clk 0:00:44]} 21... Rcd8 {[%clk 0:01:39.4]} 22. Bh3 {[%clk
0:00:44]} 22... Nd5 {[%clk 0:01:31.4]} 23. Qg4 {[%clk 0:00:33.1]} 23... Nc3
{[%clk 0:01:20.5]} 24. Rc1 {[%clk 0:00:32.9]} 24... Rd6 {[%clk 0:01:00]} 25. Nb1
{[%clk 0:00:17]} 25... Red8 {[%clk 0:00:51.6]} 26. Kf1 {[%clk 0:00:09.6]} 26...
Nxb1 {[%clk 0:00:21.7]} 27. Rxb1 {[%clk 0:00:10.5]} 27... Rd2 {[%clk 0:00:20.4]}
28. Rc1 {[%clk 0:00:07.8]} 28... Rg8 {[%clk 0:00:16.7]} 29. Kg2 {[%clk
0:00:05.9]} 29... Ne7 {[%clk 0:00:12.2]} 30. Qg3 {[%clk 0:00:03.3]} 30... Qf6
{[%clk 0:00:10.7]} 31. Kh1 {[%clk 0:00:03]} 31... Nd5 {[%clk 0:00:08.5]} 32. Rg2
{[%clk 0:00:02.6]} 32... Nc3 {[%clk 0:00:08]} 33. Qh2 {[%clk 0:00:02.5]} 33...
Rgd8 {[%clk 0:00:07]} 34. Bg4 {[%clk 0:00:02.6]} 34... Qe7 {[%clk 0:00:05.9]}
35. Rcg1 {[%clk 0:00:03]} 35... Qf6 {[%clk 0:00:05.5]} 36. Bh5 {[%clk
0:00:03.5]} 36... Rg8 {[%clk 0:00:05.3]} 37. Bg4 {[%clk 0:00:03.4]} 37... Ne2
{[%clk 0:00:05]} 38. Bxe2 {[%clk 0:00:03.1]} 38... Rxe2 {[%clk 0:00:05.9]} 39.
Qf4 {[%clk 0:00:03.5]} 39... Rxc2 {[%clk 0:00:05.4]} 40. Qxe4 {[%clk 0:00:04.1]}
40... Rb2 {[%clk 0:00:04.8]} 41. b4 {[%clk 0:00:03.9]} 41... cxb4 {[%clk
0:00:04.3]} 42. axb4 {[%clk 0:00:04.8]} 42... Qd6 {[%clk 0:00:02.4]} 43. f3
{[%clk 0:00:03.4]} 43... Qxb4 {[%clk 0:00:01.3]} 44. Qxb4 {[%clk 0:00:02.4]}
44... Rxb4 {[%clk 0:00:02.2]} 45. Ra2 {[%clk 0:00:01.8]} 45... Rxh4+ {[%clk
0:00:01.9]} 46. Kg2 {[%clk 0:00:02.3]} 46... b4 {[%clk 0:00:01.5]} 47. e4 {[%clk
0:00:02.4]} 47... Rb8 {[%clk 0:00:00.7]} 48. Rxa6 {[%clk 0:00:02.3]} 48... b3
{[%clk 0:00:01.3]} 49. Rb1 {[%clk 0:00:02.6]} 49... b2 {[%clk 0:00:01.8]} 50.
Ra2 {[%clk 0:00:02]} 50... Rh5 {[%clk 0:00:01.8]} 51. Rbxb2 {[%clk 0:00:02.6]}
51... Rg5+ {[%clk 0:00:02.5]} 52. Kf2 {[%clk 0:00:03.3]} 52... Rxb2+ {[%clk
0:00:02.3]} 53. Rxb2 {[%clk 0:00:04.2]} 53... g6 {[%clk 0:00:02.6]} 54. Rb7
{[%clk 0:00:05.1]} 54... gxf5 {[%clk 0:00:02.2]} 55. e5 {[%clk 0:00:05.7]} 55...
f4 {[%clk 0:00:01.9]} 56. Rxf7 {[%clk 0:00:04.9]} 56... Rxe5 {[%clk 0:00:01.9]}
57. Rxf4 {[%clk 0:00:05.8]} 57... Rg5 {[%clk 0:00:01.9]} 58. Ra4 {[%clk
0:00:06.1]} 58... Kh7 {[%clk 0:00:02.5]} 59. f4 {[%clk 0:00:06.7]} 59... Rg7
{[%clk 0:00:02.6]} 60. Kf3 {[%clk 0:00:07.2]} 60... Rf7 {[%clk 0:00:02.8]} 61.
Ra6 {[%clk 0:00:07.6]} 61... Rg7 {[%clk 0:00:02.9]} 62. Ke4 {[%clk 0:00:07.8]}
62... Rg6 {[%clk 0:00:03.2]} 63. Ra7+ {[%clk 0:00:06.6]} 63... Rg7 {[%clk
0:00:03.8]} 64. Ra1 {[%clk 0:00:06.7]} 64... Rg1 {[%clk 0:00:04.2]} 65. Rxg1
{[%clk 0:00:05.8]} 1-0

[Event "Late-Titled-Tuesday-Blitz-May-07-2024"]
[Site "Chess.com"]
[Date "2024.05.07"]
[Round "10"]
[White "martinmena"]
[Black "klifus"]
[Result "0-1"]
[WhiteElo "2127"]
[BlackElo "2146"]
[TimeControl "180+1"]
[EndTime "15:58:01 PDT"]
[Termination "klifus won by checkmate"]

1. c4 {[%clk 0:03:00.9]} 1... e5 {[%clk 0:02:57.2]} 2. g3 {[%clk 0:03:00.1]}
2... Nc6 {[%clk 0:02:56.8]} 3. Bg2 {[%clk 0:02:59.2]} 3... g6 {[%clk 0:02:56.7]}
4. Nc3 {[%clk 0:02:59]} 4... Bg7 {[%clk 0:02:55.7]} 5. d3 {[%clk 0:02:56.5]}
5... d6 {[%clk 0:02:55.1]} 6. e4 {[%clk 0:02:53.2]} 6... Be6 {[%clk 0:02:52.4]}
7. Be3 {[%clk 0:02:52.6]} 7... Qd7 {[%clk 0:02:50.8]} 8. Nge2 {[%clk 0:02:50.1]}
8... Nge7 {[%clk 0:02:49.5]} 9. O-O {[%clk 0:02:49.6]} 9... Bh3 {[%clk
0:02:45.5]} 10. Qd2 {[%clk 0:02:48.4]} 10... h5 {[%clk 0:02:42]} 11. Nd5 {[%clk
0:02:45.7]} 11... Nxd5 {[%clk 0:02:34.9]} 12. cxd5 {[%clk 0:02:45.3]} 12... Ne7
{[%clk 0:02:29.3]} 13. f4 {[%clk 0:02:25.6]} 13... h4 {[%clk 0:02:21]} 14. fxe5
{[%clk 0:02:13.8]} 14... Bxe5 {[%clk 0:02:16.3]} 15. d4 {[%clk 0:02:12.4]} 15...
Bg7 {[%clk 0:02:14.4]} 16. Nf4 {[%clk 0:01:55.8]} 16... Bxg2 {[%clk 0:02:11.7]}
17. Qxg2 {[%clk 0:01:55.2]} 17... hxg3 {[%clk 0:02:09.7]} 18. hxg3 {[%clk
0:01:52.8]} 18... c6 {[%clk 0:01:58.6]} 19. Rac1 {[%clk 0:01:33.7]} 19... cxd5
{[%clk 0:01:56.7]} 20. Nxd5 {[%clk 0:01:32.2]} 20... Nxd5 {[%clk 0:01:55.9]} 21.
exd5 {[%clk 0:01:33.1]} 21... Rc8 {[%clk 0:01:52.5]} 22. Qe4+ {[%clk 0:00:40.6]}
22... Kf8 {[%clk 0:01:51.2]} 23. Rxc8+ {[%clk 0:00:38.8]} 23... Qxc8 {[%clk
0:01:50]} 24. Bf4 {[%clk 0:00:30.7]} 24... Qd7 {[%clk 0:01:46.4]} 25. Re1 {[%clk
0:00:20.4]} 25... Bf6 {[%clk 0:01:44.1]} 26. Qe3 {[%clk 0:00:06.2]} 26... Kg7
{[%clk 0:01:42.7]} 27. Qf2 {[%clk 0:00:04.9]} 27... Rh5 {[%clk 0:01:33.3]} 28.
Re2 {[%clk 0:00:03.7]} 28... Rxd5 {[%clk 0:01:32.3]} 29. Rd2 {[%clk 0:00:03.5]}
29... Qf5 {[%clk 0:01:29.5]} 30. Kg2 {[%clk 0:00:03.6]} 30... Qe4+ {[%clk
0:01:27.4]} 31. Qf3 {[%clk 0:00:03.4]} 31... Qxf3+ {[%clk 0:01:25.4]} 32. Kxf3
{[%clk 0:00:04.3]} 32... g5 {[%clk 0:01:21]} 33. Be3 {[%clk 0:00:03.6]} 33...
Kg6 {[%clk 0:01:20.5]} 34. b3 {[%clk 0:00:03.4]} 34... Rf5+ {[%clk 0:01:19.3]}
35. Kg2 {[%clk 0:00:03.1]} 35... g4 {[%clk 0:01:16.5]} 36. d5 {[%clk 0:00:03.2]}
36... Rf3 {[%clk 0:01:12.3]} 37. Bxa7 {[%clk 0:00:02]} 37... Be5 {[%clk
0:01:10.6]} 38. Bf2 {[%clk 0:00:01.7]} 38... Kf5 {[%clk 0:01:08.2]} 39. Rc2
{[%clk 0:00:02.1]} 39... Ke4 {[%clk 0:01:06.8]} 40. Rd2 {[%clk 0:00:02.4]} 40...
b5 {[%clk 0:01:02.7]} 41. a4 {[%clk 0:00:01.9]} 41... bxa4 {[%clk 0:01:00.9]}
42. bxa4 {[%clk 0:00:01.7]} 42... Ra3 {[%clk 0:01:00.7]} 43. Rb2 {[%clk
0:00:01.4]} 43... Rxa4 {[%clk 0:00:59.8]} 44. Rb7 {[%clk 0:00:02]} 44... f5
{[%clk 0:00:59.4]} 45. Re7 {[%clk 0:00:02.2]} 45... Kxd5 {[%clk 0:00:58.1]} 46.
Rf7 {[%clk 0:00:02.9]} 46... Ke4 {[%clk 0:00:57.9]} 47. Rb7 {[%clk 0:00:03.6]}
47... d5 {[%clk 0:00:56.9]} 48. Rb5 {[%clk 0:00:04.1]} 48... d4 {[%clk
0:00:55.9]} 49. Rb1 {[%clk 0:00:03.6]} 49... Ra2 {[%clk 0:00:55.2]} 50. Re1+
{[%clk 0:00:03.9]} 50... Kd5 {[%clk 0:00:55.1]} 51. Rd1 {[%clk 0:00:04]} 51...
Re2 {[%clk 0:00:52.5]} 52. Rc1 {[%clk 0:00:03.8]} 52... Ke4 {[%clk 0:00:52.1]}
53. Rb1 {[%clk 0:00:02.5]} 53... Kd3 {[%clk 0:00:49.8]} 54. Rd1+ {[%clk
0:00:01.8]} 54... Kc2 {[%clk 0:00:49.4]} 55. Ra1 {[%clk 0:00:01.7]} 55... d3
{[%clk 0:00:48.4]} 56. Ra2+ {[%clk 0:00:02.2]} 56... Kb3 {[%clk 0:00:47.7]} 57.
Rxe2 {[%clk 0:00:02.6]} 57... dxe2 {[%clk 0:00:47.6]} 58. Be1 {[%clk 0:00:02.7]}
58... Kc2 {[%clk 0:00:47.6]} 59. Kf2 {[%clk 0:00:03]} 59... Kd1 {[%clk
0:00:47.3]} 60. Bc3 {[%clk 0:00:02.8]} 60... Bxg3+ {[%clk 0:00:46.5]} 61. Kxg3
{[%clk 0:00:02.4]} 61... e1=Q+ {[%clk 0:00:46.2]} 62. Bxe1 {[%clk 0:00:03.1]}
62... Kxe1 {[%clk 0:00:46.4]} 63. Kg2 {[%clk 0:00:02.5]} 63... Ke2 {[%clk
0:00:46.2]} 64. Kg3 {[%clk 0:00:03.1]} 64... Ke3 {[%clk 0:00:45.7]} 65. Kg2
{[%clk 0:00:04]} 65... f4 {[%clk 0:00:45.2]} 66. Kg1 {[%clk 0:00:04.9]} 66...
Ke2 {[%clk 0:00:44.1]} 67. Kg2 {[%clk 0:00:04.9]} 67... f3+ {[%clk 0:00:44.2]}
68. Kg1 {[%clk 0:00:04.2]} 68... f2+ {[%clk 0:00:44.3]} 69. Kh2 {[%clk 0:00:04]}
69... f1=Q {[%clk 0:00:42.8]} 70. Kg3 {[%clk 0:00:04.8]} 70... Qf3+ {[%clk
0:00:42.5]} 71. Kh4 {[%clk 0:00:04.8]} 71... Qh3+ {[%clk 0:00:41.3]} 72. Kg5
{[%clk 0:00:04.6]} 72... g3 {[%clk 0:00:41.5]} 73. Kf4 {[%clk 0:00:05.5]} 73...
g2 {[%clk 0:00:41.3]} 74. Ke4 {[%clk 0:00:06.4]} 74... g1=Q {[%clk 0:00:40.2]}
75. Kd5 {[%clk 0:00:07]} 75... Qg5+ {[%clk 0:00:37.7]} 76. Kc4 {[%clk
0:00:07.9]} 76... Qgg4+ {[%clk 0:00:34.3]} 77. Kc5 {[%clk 0:00:06]} 77... Qhh5+
{[%clk 0:00:33.4]} 78. Kd6 {[%clk 0:00:06.9]} 78... Qgg6+ {[%clk 0:00:33]} 79.
Ke7 {[%clk 0:00:07.8]} 79... Qhh7+ {[%clk 0:00:32.8]} 80. Kf8 {[%clk 0:00:08.7]}
80... Qgg8# {[%clk 0:00:32.5]} 0-1